fUSD/lending_fUSD_20251025
["ID","MTS","AMOUNT","RATE_DAILY","PERIOD"]
[392393724,1761425444328,-500.0,0.0003317,7]
[392393725,1761425444338,-79.39656321,0.00033968,9]
[392393726,1761425444347,-500.0,0.00033968,9]
[392393727,1761425444356,-500.0,0.00033968,9]
[392393728,1761425444366,-500.6529045,0.00033968,9]
[392393729,1761425444375,-507.27486297,0.00033968,9]
[392393730,1761425444385,-518.17556146,0.00033968,9]
[392393731,1761425444394,-502.92839805,0.00033968,9]
[392393732,1761425444403,-500.0,0.00033968,9]
[392393733,1761425444413,-503.98946662,0.00033968,9]
[392393734,1761425444422,-500.0,0.00033968,9]
[392393735,1761425444431,-502.19816436,0.00033968,9]
[392393736,1761425444440,-500.0,0.00033968,9]
[392393737,1761425444450,-500.0,0.00033968,9]
[392393738,1761425444459,-128.5101728,0.00033968,9]
[392393740,1761425445232,5357.29439227,0.00036925,120]
[392393883,1761425654885,314.55067941,0.00036925,60]
[392393894,1761425705382,984.72783078,0.00036925,50]
[392393920,1761425824540,300.0,0.00027425,120]
[392393921,1761425824638,300.0,0.00029393,120]
[392393922,1761425825294,300.0,0.00029393,120]
[392393923,1761425825394,300.0,0.00029393,120]
[392393924,1761425825543,300.0,0.00029393,120]
[392394019,1761425832305,195.0,0.00027425,120]
[392394020,1761425832395,195.0,0.00025648,120]
[392394076,1761425883746,195.0,0.00027425,120]
[392394078,1761425886066,300.0,0.00027425,120]
[392394080,1761425886167,300.0,0.00027425,120]
[392394081,1761425886269,300.0,0.00027425,120]
[392394082,1761425886390,300.0,0.00027425,120]
[392394083,1761425886528,432.60836671,0.00027425,120]
[392394085,1761425887135,4028.32289168,0.00027425,120]
[392394086,1761425887755,416.89903315,0.00027425,120]
[392394087,1761425893315,157.49675784,0.00036925,120]
[392394162,1761425947469,2500.0,0.00027425,120]
[392394163,1761425947575,2500.0,0.00025648,120]
[392394164,1761425947729,903.07967562,0.00027183,120]
[392394187,1761425948848,300.0,0.00027425,120]
[392394191,1761425948956,300.0,0.00027425,120]
[392394193,1761425949052,300.0,0.00027425,120]
[392394197,1761425949161,300.0,0.00027425,120]
[392394200,1761425949272,300.0,0.00027425,120]
[392394280,1761426005053,300.0,0.00027425,120]
[392394281,1761426005242,300.0,0.00027425,120]
[392394282,1761426005387,300.0,0.00027425,120]
[392394283,1761426005752,300.0,0.00027425,120]
[392394376,1761426334937,-325.11,0.00015114,2]
[392394377,1761426334962,-138.52883517,0.0001591,2]
[392394380,1761426337569,-186.58116483,0.0001591,2]
[392394381,1761426337596,-221.73995018,0.00016706,2]
[392394383,1761426340655,-103.37004982,0.00016706,2]
[392394384,1761426340681,-168.12869125,0.00017501,2]
[392394385,1761426349982,-151.0,0.00017501,2]
[392394386,1761426350006,-71.06286013,0.00017501,2]
[392394401,1761426556235,-79.93713987,0.00017501,2]
[392394402,1761426556255,-176.94942203,0.00017501,2]
[392394403,1761426556275,-250.0,0.00017501,2]
[392394404,1761426556296,-156.98130875,0.00017501,2]
[392394405,1761426556317,-30.38613323,0.00018297,2]
[392394412,1761426608489,7670.798272,7.945e-05,2]
[392394425,1761426631608,-294.72386677,0.00018297,2]
[392394426,1761426631618,-307.08289638,0.00018456,2]
[392394427,1761426631628,-116.97411314,0.00019092,2]
[392394428,1761426631642,-208.13588686,0.00019092,2]
[392394429,1761426631652,-250.0,0.00019251,2]
[392394430,1761426631663,-325.11,0.00019888,2]
[392394431,1761426631673,-250.0,0.00020126,2]
[392394432,1761426631683,-325.11,0.00020683,2]
[392394433,1761426631694,-1330.70691038,0.00021186,2]
[392394434,1761426631707,-567.15497458,0.00021186,2]
[392394435,1761426631719,-252.11824185,0.00021186,2]
[392394436,1761426631730,-836.36343726,0.00021186,2]
[392394437,1761426631742,-1525.23305569,0.00021186,2]
[392394438,1761426631757,-19209.29715173,0.00021186,2]
[392394439,1761426631768,-986.17788644,0.00021186,2]
[392394440,1761426631778,-782.07395127,0.00021186,2]
[392394441,1761426631789,-1133.27251742,0.00021186,2]
[392394442,1761426631800,-368.0,0.00021186,2]
[392394443,1761426631811,-1360.866341,0.00021186,2]
[392394444,1761426631822,-425.84451,0.00021186,2]
[392394445,1761426631833,-1701.6785179,0.00021186,2]
[392394446,1761426631843,-3128.29660856,0.00021186,2]
[392394447,1761426631853,-1533.74977267,0.00021186,2]
[392394448,1761426631969,-4180.73613342,0.00021186,2]
[392394449,1761426631978,-181.13536588,0.00021379,2]
[392394450,1761426631987,-325.11,0.00021479,2]
[392394451,1761426631998,-325.11,0.00022274,2]
[392394453,1761426632008,-325.11,0.0002307,2]
[392394455,1761426632016,-325.11,0.00023865,2]
[392394456,1761426632026,-251.85940406,0.00024176,2]
[392394457,1761426632035,-500.0,0.00024274,2]
[392394458,1761426632045,-325.11,0.00024661,2]
[392394459,1761426632055,-27775.38419215,0.00024685,2]
[392394461,1761426632064,-500.0,0.00024932,2]
[392394462,1761426632076,-151.0,0.00024932,2]
[392394463,1761426632085,-1037.64,0.00025,2]
[392394464,1761426632094,-325.11,0.00025456,2]
[392394465,1761426632103,-221.65,0.00025477,2]
[392394466,1761426632112,-156.587,0.0002548,2]
[392394467,1761426632121,-500.0,0.00025644,2]
[392394468,1761426632131,-15090.44737826,0.00025707,2]
[392394469,1761426632141,-162.380719,0.00026028,2]
[392394470,1761426632152,-1200.0,0.00026251,2]
[392394471,1761426632161,-325.11,0.00026252,2]
[392394472,1761426632171,-20553.60536408,0.00026358,2]
[392394473,1761426632181,-166.66,0.00026534,30]
[392394474,1761426632191,-168.3888056,0.00026576,2]
[392394475,1761426632199,-18796.21434236,0.00026839,2]
[392394476,1761426632209,-6275.03,0.00026965,2]
[392394477,1761426632220,-300.0,0.00026999,2]
[392394478,1761426632231,-300.0,0.00026999,2]
[392394479,1761426632240,-300.0,0.00026999,2]
[392394480,1761426632249,-476.0,0.00027,2]
[392394481,1761426632258,-325.11,0.00027047,2]
[392394482,1761426632268,-166.66,0.00027092,30]
[392394483,1761426632278,-1051.0,0.00027123,2]
[392394484,1761426632287,-174.61919141,0.00027124,2]
[392394485,1761426632296,-500.0,0.00027315,2]
[392394486,1761426632305,-166.66,0.00027651,30]
[392394487,1761426632314,-156.71913146,0.00027672,2]
[392394488,1761426632323,-999.0,0.00027839,3]
[392394489,1761426632333,-325.11,0.00027843,2]
[392394490,1761426632347,-166.66,0.00028209,30]
[392394491,1761426632357,-1680.0,0.00028528,2]
[392394492,1761426632366,-325.11,0.00028638,2]
[392394493,1761426632375,-166.66,0.00028768,30]
[392394494,1761426632385,-420.0,0.00029189,2]
[392394495,1761426632393,-166.66,0.00029327,30]
[392394496,1761426632403,-325.11,0.00029434,2]
[392394497,1761426632411,-500.0,0.00029836,2]
[392394498,1761426632422,-325.11,0.00030229,2]
[392394499,1761426632431,-500.0,0.00030241,2]
[392394500,1761426632440,-500.0,0.00030241,2]
[392394501,1761426632449,-500.0,0.00030241,2]
[392394502,1761426632458,-500.0,0.00030241,2]
[392394503,1761426632467,-500.0,0.00030241,2]
[392394504,1761426632476,-286.21640848,0.00030241,2]
[392394505,1761426632486,-317.60100856,0.00030241,2]
[392394506,1761426632495,-500.0,0.00030241,2]
[392394507,1761426632504,-500.0,0.00030241,2]
[392394508,1761426632513,-500.0,0.00030241,2]
[392394509,1761426632522,-500.0,0.00030241,2]
[392394510,1761426632531,-500.0,0.00030241,2]
[392394511,1761426632540,-16375.65,0.00030242,2]
[392394512,1761426632548,-511.24,0.00030519,2]
[392394513,1761426632557,-3488.0,0.00030644,2]
[392394514,1761426632566,-558.0,0.00030644,2]
[392394515,1761426632575,-6583.0,0.00030644,2]
[392394516,1761426632584,-1877.0,0.00031003,2]
[392394517,1761426632593,-1000.0,0.00031265,2]
[392394518,1761426632602,-151.0,0.00031288,2]
[392394519,1761426632611,-286.26650797,0.00031288,2]
[392394520,1761426632620,-277.35679052,0.00031288,2]
[392394521,1761426632629,-587.0,0.00031557,2]
[392394522,1761426632638,-500.0,0.000318,2]
[392394523,1761426632647,-151.0,0.00031836,2]
[392394524,1761426632656,-4816.5537,0.0003184,2]
[392394525,1761426632665,-233.7833,0.0003184,2]
[392394526,1761426632673,-1063.143,0.000319,30]
[392394527,1761426632682,-23365.92575112,0.0003194,3]
[392394528,1761426632694,-3934.33264352,0.0003194,3]
[392394529,1761426632705,-1614.31558144,0.0003194,3]
[392394530,1761426632717,-58386.00493786,0.0003194,3]
[392394531,1761426632726,-338.33156474,0.0003194,2]
[392394532,1761426632735,-476.4830027,0.0003194,3]
[392394533,1761426632744,-179.52113766,0.0003194,2]
[392394534,1761426632753,-151.0,0.0003194,30]
[392394535,1761426632763,-151.0,0.0003194,30]
[392394536,1761426632772,-151.0,0.0003194,30]
[392394537,1761426632781,-151.0,0.0003194,10]
[392394538,1761426632790,-151.0,0.0003194,30]
[392394539,1761426632799,-151.0,0.0003194,30]
[392394540,1761426632808,-8158.72837508,0.0003194,2]
[392394541,1761426632817,-476.4830027,0.00031952,2]
[392394542,1761426632827,-200.0,0.00031965,2]
[392394543,1761426632836,-150.387,0.00031965,2]
[392394544,1761426632844,-150.328,0.00031965,2]
[392394545,1761426632853,-150.0,0.00031965,2]
[392394546,1761426632863,-278.364,0.00031965,2]
[392394547,1761426632872,-150.311,0.00031965,2]
[392394548,1761426632881,-292.425,0.00031965,2]
[392394549,1761426632890,-150.0,0.00031965,2]
[392394550,1761426632899,-150.224,0.00031965,2]
[392394551,1761426632908,-819.0,0.00031965,2]
[392394552,1761426632917,-3414.0,0.00031965,2]
[392394553,1761426632926,-2054.0,0.00031965,2]
[392394554,1761426632935,-572.0,0.00031965,2]
[392394555,1761426632945,-606.0,0.00031965,2]
[392394556,1761426632954,-1592.0,0.00031965,2]
[392394557,1761426632963,-1312.0,0.00031965,2]
[392394558,1761426632972,-818.0,0.00031965,2]
[392394559,1761426632981,-1270.0,0.00031965,2]
[392394560,1761426632990,-1185.0,0.00031965,2]
[392394561,1761426632999,-903.0,0.00031965,2]
[392394562,1761426633009,-151.0,0.00031965,30]
[392394563,1761426633018,-151.0,0.00031965,30]
[392394564,1761426633027,-151.0,0.00031965,30]
[392394565,1761426633036,-301.734197,0.00031965,30]
[392394566,1761426633045,-250.522573,0.00031965,30]
[392394567,1761426633054,-151.0,0.00031965,30]
[392394568,1761426633063,-151.0,0.00031965,30]
[392394569,1761426633072,-151.0,0.00031965,30]
[392394570,1761426633082,-151.0,0.00031965,30]
[392394571,1761426633091,-151.0,0.00031965,10]
[392394572,1761426633100,-162.814373,0.00031965,30]
[392394573,1761426633109,-151.0,0.00031965,30]
[392394574,1761426633118,-172.60283165,0.00031965,2]
[392394575,1761426633127,-150.0,0.00031965,2]
[392394576,1761426633136,-239.58867815,0.00032,120]
[392394577,1761426633147,-188.91284255,0.00032,120]
[392394578,1761426633157,-1729.13623816,0.00032,120]
[392394579,1761426633166,-170.74964824,0.00032179,2]
[392394580,1761426633175,-185.38,0.00032249,2]
[392394581,1761426633185,-151.0,0.00032258,30]
[392394582,1761426633194,-236.76380266,0.00032258,2]
[392394583,1761426633287,-389.40458174,0.00032258,2]
[392394584,1761426633296,-230.61071988,0.00032258,2]
[392394585,1761426633305,-408.61069072,0.00032258,2]
[392394586,1761426633314,-153.532405,0.00032259,30]
[392394587,1761426633323,-591.848662,0.00032259,30]
[392394588,1761426633332,-591.848662,0.00032259,30]
[392394589,1761426633341,-591.848662,0.00032259,30]
[392394590,1761426633350,-591.848662,0.00032259,30]
[392394591,1761426633359,-591.848662,0.00032259,30]
[392394592,1761426633368,-591.848662,0.00032259,30]
[392394593,1761426633377,-591.848662,0.00032259,30]
[392394594,1761426633386,-591.848662,0.00032259,30]
[392394595,1761426633395,-151.0,0.00032259,30]
[392394596,1761426633406,-151.0,0.00032259,30]
[392394597,1761426633415,-151.0,0.00032259,30]
[392394598,1761426633425,-151.0,0.00032259,30]
[392394599,1761426633434,-1036.49,0.00032259,14]
[392394600,1761426633443,-250.0,0.00032259,2]
[392394601,1761426633452,-500.0,0.00032259,2]
[392394602,1761426633461,-250.0,0.00032259,2]
[392394603,1761426633470,-250.0,0.00032259,2]
[392394604,1761426633480,-500.0,0.00032259,2]
[392394605,1761426633489,-250.0,0.00032259,2]
[392394606,1761426633498,-250.0,0.00032259,2]
[392394607,1761426633507,-500.0,0.00032259,2]
[392394608,1761426633516,-250.0,0.00032259,2]
[392394609,1761426633526,-250.0,0.00032259,2]
[392394610,1761426633535,-250.0,0.00032259,2]
[392394611,1761426633544,-500.0,0.00032259,2]
[392394612,1761426633553,-250.0,0.00032259,2]
[392394613,1761426633562,-250.0,0.00032259,2]
[392394614,1761426633571,-500.0,0.00032259,2]
[392394615,1761426633580,-151.0,0.00032259,2]
[392394616,1761426633589,-250.0,0.00032259,2]
[392394617,1761426633598,-250.0,0.00032259,2]
[392394618,1761426633607,-500.0,0.00032259,2]
[392394619,1761426633616,-250.0,0.00032259,2]
[392394620,1761426633625,-151.0,0.00032259,2]
[392394621,1761426633635,-250.0,0.00032259,2]
[392394622,1761426633644,-500.0,0.00032259,2]
[392394623,1761426633653,-250.0,0.00032259,2]
[392394624,1761426633662,-250.0,0.00032259,2]
[392394625,1761426633671,-151.0,0.00032259,2]
[392394626,1761426633680,-250.0,0.00032259,2]
[392394627,1761426633690,-500.0,0.00032259,2]
[392394628,1761426633699,-500.0,0.00032259,2]
[392394629,1761426633708,-250.0,0.00032259,2]
[392394630,1761426633717,-151.0,0.00032259,2]
[392394631,1761426633726,-250.0,0.00032259,2]
[392394632,1761426633736,-500.0,0.00032259,2]
[392394633,1761426633745,-151.0,0.00032259,2]
[392394634,1761426633754,-500.0,0.00032259,2]
[392394635,1761426633763,-250.0,0.00032259,2]
[392394636,1761426633773,-250.0,0.00032259,2]
[392394637,1761426633782,-151.0,0.00032259,2]
[392394638,1761426633791,-250.0,0.00032259,2]
[392394639,1761426633800,-500.0,0.00032259,2]
[392394640,1761426633810,-151.0,0.00032259,2]
[392394641,1761426633819,-500.0,0.00032259,2]
[392394642,1761426633829,-250.0,0.00032259,2]
[392394643,1761426633838,-500.0,0.00032259,2]
[392394644,1761426633847,-250.0,0.00032259,2]
[392394645,1761426633856,-151.0,0.00032259,2]
[392394646,1761426633865,-151.0,0.00032259,2]
[392394647,1761426633874,-500.0,0.00032259,2]
[392394648,1761426633884,-500.0,0.00032259,2]
[392394649,1761426633893,-250.0,0.00032259,2]
[392394650,1761426633902,-250.0,0.00032259,2]
[392394651,1761426633911,-500.0,0.00032259,2]
[392394652,1761426633920,-250.0,0.00032259,2]
[392394653,1761426633929,-151.0,0.00032259,2]
[392394654,1761426633939,-500.0,0.00032259,2]
[392394655,1761426633948,-151.0,0.00032259,2]
[392394656,1761426633958,-500.0,0.00032259,2]
[392394657,1761426633967,-250.0,0.00032259,2]
[392394658,1761426633976,-151.0,0.00032259,2]
[392394659,1761426633985,-500.0,0.00032259,2]
[392394660,1761426633996,-151.0,0.00032259,2]
[392394661,1761426634005,-500.0,0.00032259,2]
[392394662,1761426634014,-250.0,0.00032259,2]
[392394663,1761426634023,-151.0,0.00032259,2]
[392394664,1761426634033,-520.60703777,0.00032259,2]
[392394665,1761426634042,-500.0,0.00032259,2]
[392394666,1761426634051,-154.06564894,0.00032259,2]
[392394667,1761426634060,-250.0,0.00032259,2]
[392394668,1761426634069,-151.0,0.00032259,2]
[392394669,1761426634078,-500.0,0.00032259,2]
[392394670,1761426634087,-574.12855637,0.00032259,2]
[392394671,1761426634096,-250.0,0.00032259,2]
[392394672,1761426634106,-151.0,0.00032259,2]
[392394673,1761426634115,-500.0,0.00032259,2]
[392394674,1761426634126,-250.0,0.00032259,2]
[392394675,1761426634135,-151.0,0.00032259,2]
[392394676,1761426634146,-200.0,0.00032259,2]
[392394677,1761426634156,-295.99333095,0.00032259,2]
[392394678,1761426634171,-204.00666905,0.00032259,2]
[392394679,1761426634181,-250.0,0.00032259,2]
[392394680,1761426634191,-151.0,0.00032259,2]
[392394681,1761426634200,-500.0,0.00032259,2]
[392394682,1761426634210,-151.0,0.00032259,2]
[392394683,1761426634220,-500.0,0.00032259,2]
[392394684,1761426634229,-151.0,0.00032259,2]
[392394685,1761426634239,-500.0,0.00032259,2]
[392394686,1761426634248,-200.0,0.00032259,2]
[392394687,1761426634257,-322.6107,0.00032259,2]
[392394688,1761426634267,-151.0,0.00032259,2]
[392394689,1761426634276,-500.0,0.00032259,2]
[392394690,1761426634285,-151.0,0.00032259,2]
[392394691,1761426634295,-500.0,0.00032259,2]
[392394692,1761426634304,-151.0,0.00032259,2]
[392394693,1761426634313,-500.0,0.00032259,2]
[392394694,1761426634322,-151.0,0.00032259,2]
[392394695,1761426634332,-500.0,0.00032259,2]
[392394696,1761426634344,-151.0,0.00032259,2]
[392394697,1761426634353,-500.0,0.00032259,2]
[392394698,1761426634362,-151.0,0.00032259,2]
[392394699,1761426634371,-500.0,0.00032259,2]
[392394700,1761426634381,-500.0,0.00032259,2]
[392394701,1761426634390,-151.0,0.00032259,2]
[392394702,1761426634398,-500.0,0.00032259,2]
[392394703,1761426634408,-500.0,0.00032259,2]
[392394704,1761426634419,-151.0,0.00032259,2]
[392394705,1761426634509,-250.0,0.00032259,2]
[392394706,1761426634519,-500.0,0.00032259,2]
[392394707,1761426634528,-151.0,0.00032259,2]
[392394708,1761426634537,-250.0,0.00032259,2]
[392394709,1761426634546,-500.0,0.00032259,2]
[392394710,1761426634555,-500.0,0.00032259,2]
[392394711,1761426634564,-151.0,0.00032259,2]
[392394712,1761426634573,-250.0,0.00032259,2]
[392394713,1761426634582,-500.0,0.00032259,2]
[392394714,1761426634591,-500.0,0.00032259,2]
[392394715,1761426634600,-210.63142134,0.00032259,2]
[392394716,1761426634608,-250.0,0.00032259,2]
[392394717,1761426634618,-250.0,0.00032259,2]
[392394718,1761426634627,-500.0,0.00032259,2]
[392394719,1761426634635,-500.0,0.00032259,2]
[392394720,1761426634644,-250.0,0.00032259,2]
[392394721,1761426634653,-250.0,0.00032259,2]
[392394722,1761426634663,-500.0,0.00032259,2]
[392394723,1761426634671,-500.0,0.00032259,2]
[392394724,1761426634680,-250.0,0.00032259,2]
[392394725,1761426634689,-250.0,0.00032259,2]
[392394726,1761426634698,-500.0,0.00032259,2]
[392394727,1761426634707,-250.0,0.00032259,2]
[392394728,1761426634716,-250.0,0.00032259,2]
[392394729,1761426634726,-500.0,0.00032259,2]
[392394730,1761426634736,-250.0,0.00032259,2]
[392394731,1761426634746,-250.0,0.00032259,2]
[392394732,1761426634755,-500.0,0.00032259,2]
[392394733,1761426634765,-250.0,0.00032259,2]
[392394734,1761426634775,-250.0,0.00032259,2]
[392394735,1761426634784,-500.0,0.00032259,2]
[392394736,1761426634794,-200.0,0.00032259,2]
[392394737,1761426634803,-250.0,0.00032259,2]
[392394738,1761426634812,-250.0,0.00032259,2]
[392394739,1761426634822,-250.0,0.00032259,2]
[392394740,1761426634831,-250.0,0.00032259,2]
[392394741,1761426634840,-250.0,0.00032259,2]
[392394742,1761426634848,-250.0,0.00032259,2]
[392394743,1761426634857,-250.0,0.00032259,2]
[392394744,1761426634867,-12586.9819941,0.00032269,3]
[392394745,1761426634876,-500.0,0.00032273,5]
[392394746,1761426634885,-500.0,0.00032273,5]
[392394747,1761426634894,-500.0,0.00032273,5]
[392394748,1761426634903,-500.0,0.00032273,5]
[392394749,1761426634912,-151.0,0.00032279,30]
[392394750,1761426634921,-151.0,0.00032279,30]
[392394751,1761426634930,-591.848662,0.00032279,30]
[392394752,1761426634938,-591.848662,0.00032279,30]
[392394753,1761426634947,-591.848662,0.00032279,30]
[392394754,1761426634956,-591.848662,0.00032279,30]
[392394755,1761426634965,-151.0,0.00032279,30]
[392394756,1761426634974,-11667.99970402,0.00032366,3]
[392394761,1761426637503,-547.27808241,0.00030644,2]
[392394762,1761426637515,-2488.40408527,0.00030644,2]
[392394763,1761426637558,-542.46609112,0.00030644,2]
[392394764,1761426637613,-680.02209626,0.00030644,2]
[392394766,1761426637731,-6.84544397,0.00030644,2]
[392394775,1761426645571,-476.24626761,0.00021185,2]
[392394776,1761426645581,-1016.20600805,0.00030644,2]
[392394777,1761426646008,-266.67,0.00030644,2]
[392394792,1761426904042,194.0,0.0002942,120]
[392394995,1761427311519,1000.0,0.00036925,120]
[392395044,1761427507689,111929.76408124,0.00015,2]
[392395046,1761427511309,491.14417496,0.00036925,60]
[392395047,1761427512012,589.2165492,0.00036925,91]
[392395049,1761427515521,680.22625895,0.00036925,120]
[392395050,1761427522739,274.79555957,0.00036925,120]
[392395051,1761427524416,201.36327928,0.00036925,120]
[392395052,1761427531204,195.31803248,0.00036925,120]
[392395053,1761427545758,396.20061845,0.00036925,120]
[392395054,1761427559814,592.27275487,0.00036925,90]
[392395055,1761427562121,567.61799461,0.00036925,120]
[392395057,1761427563612,665.00215182,0.00036925,120]
[392395058,1761427564483,179.44205466,0.00036925,120]
[392395059,1761427566725,187.03075929,0.00036925,120]
[392395060,1761427568338,595.56392925,0.00036925,60]
[392395061,1761427568631,240.73894783,0.00036925,120]
[392395062,1761427571799,344.25614918,0.00036925,60]
[392395063,1761427585763,671.24073474,0.00036925,120]
[392395064,1761427616642,5000.00971687,0.000162,5]
[392395067,1761427629402,320.12534043,0.00036925,120]
[392395068,1761427648112,340.03196796,0.00036925,120]
[392395069,1761427648402,153.70444199,0.00036925,120]
[392395070,1761427654170,335.46859711,0.00036925,120]
[392395071,1761427658285,999.73455262,0.00036925,120]
[392395072,1761427659762,596.38423344,0.00036925,120]
[392395073,1761427660517,643.56398786,0.00036925,120]
[392395074,1761427660545,32044.86279854,0.0002,5]
[392395075,1761427660569,100000.0,0.0002,5]
[392395076,1761427660596,15377.10058534,0.0002,5]
[392395077,1761427661296,262.2333871,0.00036925,120]
[392395078,1761427661463,993.3033002,0.00036925,120]
[392395079,1761427672964,258.86807966,0.00036925,120]
[392395080,1761427676555,784.00882103,0.00036925,120]
[392395081,1761427679391,524.14846521,0.00036925,60]
[392395082,1761427694566,846.08735702,0.00036925,120]
[392395084,1761427700543,482.08328173,0.00036925,60]
[392395085,1761427702018,854.30076098,0.00036925,120]
[392395086,1761427706104,1049.15337518,0.00036925,120]
[392395087,1761427706528,287.89995662,0.00036925,120]
[392395088,1761427708714,756.0,0.00036925,120]
[392395089,1761427709712,1026.33407917,0.00036925,120]
[392395090,1761427710259,786.43306437,0.00022,7]
[392395092,1761427711684,507.65601251,0.00036925,120]
[392395094,1761427711946,606.79595542,0.00036925,120]
[392395095,1761427714376,960.37880798,0.00036925,120]
[392395096,1761427715746,225.13718033,0.00036925,120]
[392395097,1761427716662,757.1706349,0.00036925,60]
[392395098,1761427717850,875.313276,0.00036925,120]
[392395099,1761427718115,200.78959691,0.00036925,120]
[392395100,1761427718605,194.18225221,0.00036925,120]
[392395101,1761427718742,374.20864298,0.00036925,120]
[392395102,1761427719359,302.4178081,0.00036925,120]
[392395103,1761427719440,720.51251833,0.00036925,120]
[392395104,1761427720507,186.75848012,0.00036925,120]
[392395105,1761427720577,913.63843069,0.00036925,120]
[392395106,1761427720640,770.94627736,0.00036925,60]
[392395107,1761427720854,365.3458617,0.00036925,120]
[392395108,1761427721431,346.12250748,0.00036925,120]
[392395109,1761427721486,160.0,0.00021,7]
[392395110,1761427721891,734.01652889,0.00036925,120]
[392395111,1761427721980,500.0,0.00036925,120]
[392395112,1761427722524,184.19040103,0.00036925,120]
[392395113,1761427722717,1053.32570283,0.00036925,120]
[392395126,1761427803864,194.0,0.00022507,120]
[392395132,1761427831772,-1365.49940773,0.00018,2]
[392395133,1761427831782,-160.46945827,0.00018999,2]
[392395134,1761427831791,-250.0,0.000198,2]
[392395135,1761427831800,-300.0,0.00019999,2]
[392395136,1761427831809,-500.0,0.00019999,2]
[392395137,1761427831819,-35203.57868134,0.0002,2]
[392395138,1761427831829,-1121.82583797,0.0002,2]
[392395139,1761427831838,-346.08254419,0.0002,2]
[392395140,1761427831847,-2598.40514329,0.00021,2]
[392395141,1761427831856,-828.93433233,0.00021,2]
[392395142,1761427831865,-1180.03949654,0.00021,2]
[392395143,1761427831876,-194.78217646,0.00021,2]
[392395144,1761427831887,-219.61127162,0.000215,2]
[392395145,1761427831897,-420.0,0.00021777,2]
[392395146,1761427831907,-587.0,0.00023712,2]
[392395147,1761427831918,-151.87794743,0.0002465,2]
[392395148,1761427831927,-500.0,0.00024932,2]
[392395149,1761427831939,-195.88018385,0.00025,2]
[392395150,1761427831954,-204.63385285,0.00025,2]
[392395151,1761427831963,-468.76125906,0.00025,2]
[392395152,1761427831974,-3773.6866687,0.00025,2]
[392395153,1761427831983,-3522.77464583,0.00025,2]
[392395154,1761427831993,-2004.18345095,0.00025,2]
[392395155,1761427832003,-3188.57385858,0.00025,2]
[392395156,1761427832012,-823.0,0.0002582,2]
[392395157,1761427832021,-181.47,0.00026681,2]
[392395158,1761427832030,-177.32,0.00027044,2]
[392395159,1761427832040,-203.0,0.00028115,2]
[392395160,1761427832049,-150.0,0.00028189,2]
[392395161,1761427832058,-150.0,0.00029048,2]
[392395162,1761427832067,-500.0,0.0002926,2]
[392395163,1761427832076,-500.0,0.00030027,2]
[392395164,1761427832087,-307.0,0.00030043,2]
[392395165,1761427832096,-300.0,0.00030505,7]
[392395166,1761427832105,-151.0,0.00030843,7]
[392395167,1761427832114,-459.66,0.00030846,2]
[392395168,1761427832123,-250.0,0.0003095,2]
[392395169,1761427832132,-155.29,0.00030992,2]